bitfinex-derivatives/quotes_BTCF0:USTF0_20250713
["timestamp","ask_amount","ask_price","bid_price","bid_amount"]
[1752434718051,0.91314644,119250.0,119240.0,0.30523522]
[1752434718257,1.27394644,119250.0,119240.0,0.30423522]
[1752434718454,0.92966186,119250.0,119240.0,0.30423522]
[1752434718758,1.35064287,119250.0,119240.0,0.30423522]
[1752434718950,1.35064287,119250.0,119240.0,0.34340522]
[1752434719260,1.63445086,119250.0,119240.0,0.34340522]
[1752434719451,1.63445086,119250.0,119240.0,0.34440522]
[1752434720457,1.35064287,119250.0,119240.0,0.34440522]
[1752434720657,1.63445086,119250.0,119240.0,0.34440522]
[1752434721559,1.57426985,119250.0,119240.0,0.32088522]
[1752434722253,1.21374985,119250.0,119240.0,0.34440522]
[1752434722558,1.57454985,119250.0,119240.0,0.34440522]
[1752434726063,1.00162985,119250.0,119240.0,0.34440522]
[1752434726258,1.57438985,119250.0,119240.0,0.34440522]
[1752434728859,1.57430985,119250.0,119240.0,0.34440522]
[1752434730462,1.57426985,119250.0,119240.0,0.34440522]
[1752434730658,1.57446985,119250.0,119240.0,0.34460522]
[1752434732658,0.71802186,119250.0,119240.0,0.51227812]
[1752434732863,0.48201542,119250.0,119240.0,0.81345977]
[1752434733063,0.12121542,119250.0,119240.0,1.17425977]
[1752434733459,0.28887422,119250.0,119240.0,1.17425977]
[1752434734364,0.12121542,119250.0,119240.0,1.17425977]
[1752434735865,0.12121542,119250.0,119240.0,0.89045178]
[1752434736066,0.12121542,119250.0,119240.0,1.17425977]
[1752434737160,0.12121542,119250.0,119240.0,2.31909977]
[1752434737558,0.07371542,119250.0,119240.0,2.31909977]
[1752434737758,0.04960542,119250.0,119240.0,2.31909977]
[1752434737959,0.01671542,119250.0,119240.0,2.31909977]
[1752434738864,0.01671542,119250.0,119240.0,3.14191977]
[1752434739070,0.01671542,119250.0,119240.0,3.42572776]
[1752434739569,0.01671542,119250.0,119240.0,3.14191977]
[1752434740563,0.01671542,119250.0,119240.0,3.42572776]
[1752434741361,0.07086,119270.0,119260.0,0.2007748]
[1752434741574,0.2384907,119270.0,119260.0,2.06031279]
[1752434741869,0.2686607,119270.0,119260.0,2.06031279]
[1752434742567,0.2696607,119270.0,119260.0,2.06031279]
[1752434743572,0.2696607,119270.0,119260.0,1.7765048]
[1752434743872,0.2696607,119270.0,119260.0,2.06031279]
[1752434744070,0.2716607,119270.0,119260.0,2.06031279]
[1752434745271,0.10403,119270.0,119260.0,2.25963079]
[1752434745671,0.10403,119270.0,119260.0,2.26901202]
[1752434746168,0.08037,119270.0,119260.0,2.26901202]
[1752434748171,0.003,119270.0,119260.0,2.26901202]
[1752434749874,0.003,119270.0,119260.0,2.58095343]
[1752434750177,0.003,119270.0,119260.0,3.10944943]
[1752434750566,0.07486,119290.0,119280.0,0.2007466]
[1752434750771,0.07486,119290.0,119280.0,1.69844459]
[1752434751079,0.10503,119290.0,119280.0,1.69844459]
[1752434751578,0.10503,119290.0,119280.0,2.05824459]
[1752434751777,0.2746326,119290.0,119280.0,1.69744459]
[1752434752076,0.2746326,119290.0,119280.0,1.4136366]
[1752434752277,0.10803,119290.0,119280.0,1.4136366]
[1752434752876,0.10803,119290.0,119280.0,2.05824459]
[1752434753378,0.02348107,119290.0,119280.0,2.07553076]
[1752434754274,0.02348107,119290.0,119280.0,2.35933875]
[1752434754474,0.02348107,119290.0,119280.0,2.65363875]
[1752434754677,0.06018101,119310.0,119300.0,0.1993885]
[1752434754976,0.44002627,119330.0,119320.0,0.1917605]
[1752434754977,0.39346167,119330.0,119320.0,0.1917605]
[1752434755171,0.39346167,119330.0,119320.0,1.3367605]
[1752434755372,0.39346167,119330.0,119320.0,1.35413742]
[1752434755579,0.35157487,119330.0,119320.0,1.35413742]
[1752434755975,0.2763486,119330.0,119320.0,1.35413742]
[1752434756275,0.08417,119330.0,119320.0,1.63794541]
[1752434756479,0.1088,119330.0,119320.0,1.63794541]
[1752434756679,0.05358,119330.0,119320.0,1.99874541]
[1752434757279,0.004,119330.0,119320.0,2.06444676]
[1752434757587,0.08017,119350.0,119340.0,0.1917324]
[1752434757882,0.08017,119350.0,119340.0,1.62054039]
[1752434758083,0.04978,119350.0,119340.0,1.63807919]
[1752434758778,0.105,119350.0,119340.0,1.63807919]
[1752434758985,0.55632629,119350.0,119340.0,1.3542712]
[1752434759186,0.2725183,119350.0,119340.0,1.3542712]
[1752434759781,0.105,119350.0,119340.0,1.3542712]
[1752434760192,0.105,119350.0,119340.0,1.83739719]
[1752434760486,0.08037,119350.0,119340.0,1.83739719]
[1752434760690,0.08037,119350.0,119340.0,1.5535892]
[1752434760886,0.105,119350.0,119340.0,1.83739719]
[1752434761391,0.105,119350.0,119340.0,2.19819719]
[1752434761688,0.08037,119350.0,119340.0,2.19819719]
[1752434761892,0.08037,119350.0,119340.0,2.20019719]
[1752434762581,0.0002,119350.0,119340.0,2.20019719]
[1752434763486,0.04978,119350.0,119340.0,2.20019719]
[1752434763887,0.0002,119350.0,119340.0,2.20019719]
[1752434765284,0.04978,119350.0,119340.0,2.20019719]
[1752434765498,0.08037,119350.0,119340.0,2.20019719]
[1752434765691,0.91712649,119350.0,119340.0,0.201518]
[1752434765892,0.91712649,119350.0,119340.0,0.151518]
[1752434765893,1.16692649,119350.0,119340.0,0.151518]
[1752434766101,0.1921766,119330.0,119320.0,0.00167609]
[1752434766291,1.77294459,119330.0,119320.0,0.00167609]
[1752434766693,1.94055259,119330.0,119320.0,0.00167609]
[1752434767989,0.1675747,119310.0,119300.0,0.0176125]
[1752434768200,0.3179182,119300.0,119290.0,0.08048]
[1752434768395,0.6368181,119300.0,119290.0,0.08048]
[1752434768603,1.170678,119300.0,119290.0,0.38848799]
[1752434768802,0.594918,119300.0,119290.0,0.55609079]
[1752434769509,0.594918,119300.0,119290.0,0.56009079]
[1752434770302,0.5530187,119300.0,119290.0,0.75940879]
[1752434771200,0.1922187,119300.0,119290.0,0.75940879]
[1752434771401,0.5530187,119300.0,119290.0,0.75940879]
[1752434772005,0.5530187,119300.0,119290.0,0.76140879]
[1752434773204,0.5530187,119300.0,119290.0,0.4776008]
[1752434773405,0.5530187,119300.0,119290.0,0.76140879]
[1752434774405,0.38543,119300.0,119290.0,0.76140879]
[1752434775407,0.02463,119300.0,119290.0,0.76140879]
[1752434776405,0.38543,119310.0,119300.0,0.1675887]
[1752434776708,0.4472898,119330.0,119320.0,0.1993607]
[1752434777004,0.02663,119330.0,119320.0,0.57339093]
[1752434777206,0.02663,119330.0,119320.0,0.28958294]
[1752434777608,0.02663,119330.0,119320.0,0.57339093]
[1752434778903,0.02663,119330.0,119320.0,1.77609276]
[1752434780109,0.1941764,119330.0,119320.0,1.77609276]
[1752434780410,0.1941764,119330.0,119320.0,2.33621076]
[1752434780812,0.02663,119330.0,119320.0,2.33621076]
[1752434781709,0.002,119330.0,119320.0,2.33621076]
[1752434784011,0.1695464,119330.0,119320.0,1.9869987]
[1752434784216,0.1939364,119330.0,119320.0,1.6263987]
[1752434785821,0.5547364,119330.0,119320.0,1.6263987]
[1752434788815,0.5547364,119330.0,119320.0,1.95826852]
[1752434791421,0.5547364,119330.0,119320.0,1.6263987]
[1752434791622,0.5547364,119330.0,119320.0,1.95826852]
[1752434792025,0.1939364,119330.0,119320.0,1.95826852]
[1752434794321,0.02639,119330.0,119320.0,1.95826852]
[1752434794821,0.02639,119330.0,119320.0,1.95926852]
[1752434795022,0.1939364,119330.0,119320.0,1.95926852]
[1752434795222,0.1939364,119330.0,119320.0,1.95826852]
[1752434795423,0.1939364,119330.0,119320.0,1.95926852]
[1752434796123,0.02639,119330.0,119320.0,1.95926852]
[1752434796312,0.1939364,119330.0,119320.0,1.95926852]
[1752434798115,0.02639,119330.0,119320.0,1.95926852]
[1752434798624,0.1939364,119330.0,119320.0,1.95926852]
[1752434799023,0.1939364,119330.0,119320.0,1.91064046]
[1752434800816,0.02639,119330.0,119320.0,1.91064046]
[1752434801217,0.0022,119330.0,119320.0,1.91064046]
[1752434801629,0.0022,119330.0,119320.0,2.19388222]
[1752434801828,0.0022,119330.0,119320.0,2.55468222]
[1752434804529,0.1697464,119330.0,119320.0,2.55468222]
[1752434804931,0.1697464,119330.0,119320.0,2.27144046]
[1752434805524,0.0022,119330.0,119320.0,2.27144046]
[1752434817937,0.0022,119330.0,119320.0,2.55468222]
[1752434818639,0.0022,119330.0,119320.0,2.27144046]
[1752434819742,0.5522214,119350.0,119340.0,0.1675325]
[1752434819934,0.1914214,119350.0,119340.0,1.68286426]
[1752434820141,0.0239,119350.0,119340.0,1.70617426]
[1752434820340,0.3608,119360.0,119350.0,0.2676384]
[1752434820538,0.31254216,119370.0,119360.0,0.2218944]
[1752434820742,0.67334216,119370.0,119360.0,1.71505914]
[1752434821043,0.0279,119370.0,119360.0,1.71305914]
[1752434821248,0.1953904,119370.0,119360.0,1.71305914]
[1752434821442,0.25567084,119370.0,119360.0,1.71305914]
[1752434821642,0.25767084,119370.0,119360.0,1.71305914]
[1752434822044,0.25767084,119370.0,119360.0,1.71505914]
[1752434822243,0.25567084,119370.0,119360.0,1.71505914]
[1752434822445,0.25567084,119370.0,119360.0,1.70578616]
[1752434823245,0.25567084,119370.0,119360.0,1.53828176]
[1752434823447,0.25918084,119370.0,119360.0,1.53828176]
[1752434823647,0.61998084,119370.0,119360.0,1.25504]
[1752434824244,0.61998084,119370.0,119360.0,1.4225446]
[1752434824451,0.25918084,119370.0,119360.0,1.4225446]
[1752434824644,0.25918084,119370.0,119360.0,1.4235446]
[1752434824845,0.5597004,119370.0,119360.0,1.4235446]
[1752434825041,0.5597004,119370.0,119360.0,1.70678636]
[1752434825242,0.5597004,119370.0,119360.0,1.92344835]
[1752434825438,0.1989004,119370.0,119360.0,1.92344835]
[1752434825648,0.42108044,119390.0,119360.0,2.39998551]
[1752434825837,0.42108044,119390.0,119380.0,0.56803875]
[1752434826039,0.42608044,119400.0,119390.0,0.1985425]
[1752434826241,0.3619532,119400.0,119390.0,0.83406602]
[1752434826437,0.1686016,119400.0,119390.0,0.10012]
[1752434826640,0.1686016,119400.0,119370.0,0.10012]
[1752434826641,0.1985165,119380.0,119370.0,0.10012]
[1752434826837,0.2705105,119370.0,119360.0,0.300438]
[1752434827038,0.6313105,119370.0,119360.0,0.300438]
[1752434827237,1.2102705,119370.0,119360.0,0.300438]
[1752434827440,1.2114637,119370.0,119360.0,0.58267976]
[1752434827642,1.2114637,119370.0,119360.0,0.299438]
[1752434828048,1.49470546,119370.0,119360.0,0.299438]
[1752434828243,1.49470546,119370.0,119360.0,0.303438]
[1752434828446,0.1914186,119350.0,119340.0,0.04573]
[1752434828744,0.1914186,119350.0,119330.0,0.2676667]
[1752434828745,0.2705526,119340.0,119330.0,0.2676667]
[1752434828948,1.1664326,119340.0,119330.0,0.38336176]
[1752434829254,0.2705667,119330.0,119320.0,0.0036036]
[1752434829448,0.92470838,119330.0,119320.0,0.0036036]
[1752434829750,1.34231638,119330.0,119320.0,0.0036036]
[1752434829942,1.92579638,119330.0,119320.0,0.0036036]
[1752434830143,1.05907462,119330.0,119320.0,0.0036036]
[1752434830346,1.2159199,119330.0,119320.0,0.0804136]
[1752434830745,1.21424437,119330.0,119320.0,0.0804136]
[1752434830948,1.2812081,119330.0,119320.0,0.0804136]
[1752434831143,1.2334881,119330.0,119320.0,0.43576054]
[1752434831348,1.16652437,119330.0,119320.0,0.60332104]
[1752434831548,1.16652437,119330.0,119320.0,0.4706021]
[1752434831750,0.80572437,119330.0,119320.0,0.4706021]
[1752434832353,0.58276437,119330.0,119320.0,0.4706021]
[1752434832549,0.80556437,119330.0,119320.0,0.4706021]
[1752434832745,0.80556437,119330.0,119320.0,0.4716021]
[1752434834052,1.16636437,119330.0,119320.0,0.3040416]
[1752434834252,1.16636437,119330.0,119320.0,0.4716021]
[1752434834944,0.58276437,119330.0,119320.0,0.4716021]
[1752434835149,1.16624437,119330.0,119320.0,0.50152523]
[1752434835349,1.0003332,119330.0,119320.0,0.83356217]
[1752434835553,0.0011532,119330.0,119320.0,0.83356217]
[1752434835755,0.0011532,119330.0,119320.0,1.77776217]
[1752434835956,0.0011532,119330.0,119320.0,1.86169686]
[1752434836158,0.0011532,119330.0,119320.0,1.87942894]
[1752434836957,0.0011532,119330.0,119320.0,1.84950581]
[1752434837157,0.0013532,119330.0,119320.0,1.84970581]
[1752434837354,0.5283139,119360.0,119350.0,0.1675184]
[1752434837656,0.002,119370.0,119360.0,0.2676244]
[1752434837853,0.002,119370.0,119360.0,0.96046134]
[1752434837854,0.1694903,119370.0,119360.0,0.96046134]
[1752434838059,0.002,119370.0,119360.0,0.43215694]
[1752434838257,0.002,119370.0,119360.0,0.59966134]
[1752434839058,0.1694903,119370.0,119360.0,0.59966134]
[1752434839259,0.002,119370.0,119360.0,0.60066134]
[1752434839554,0.2244304,119370.0,119360.0,0.60066134]
[1752434839755,0.2244304,119370.0,119360.0,0.2686244]
[1752434840156,0.2244304,119370.0,119360.0,0.4679424]
[1752434841461,0.2244304,119370.0,119360.0,0.79997934]
[1752434842362,0.2244304,119370.0,119360.0,1.16077934]
[1752434842363,0.002,119370.0,119360.0,1.16077934]
[1752434842662,0.06019013,119380.0,119370.0,0.2686303]
[1752434842861,0.06019013,119380.0,119370.0,1.54462724]
[1752434843251,0.06019013,119380.0,119370.0,1.56204133]
[1752434844459,0.2511996,119390.0,119380.0,0.1995763]
[1752434844665,0.2093325,119390.0,119380.0,0.60203324]
[1752434845366,0.2093325,119390.0,119380.0,0.80135124]
[1752434845867,0.2093325,119390.0,119380.0,0.80235124]
[1752434846965,0.3472429,119400.0,119390.0,0.2224523]
[1752434847164,0.2216383,119400.0,119390.0,0.2699823]
[1752434847367,0.2216383,119400.0,119390.0,0.60201924]
[1752434847564,0.1977383,119400.0,119390.0,0.60201924]
[1752434848257,0.03029,119400.0,119390.0,0.60201924]
[1752434848561,0.1674483,119400.0,119390.0,0.68574794]
[1752434848959,0.1674483,119400.0,119390.0,0.353711]
[1752434848960,0.2214883,119400.0,119390.0,0.353711]
[1752434850162,0.2214883,119400.0,119390.0,0.553029]
[1752434851165,0.2214883,119400.0,119390.0,0.5111639]
[1752434851366,0.2214883,119400.0,119390.0,0.301838]
[1752434851565,0.6273383,119400.0,119390.0,0.301838]
[1752434851774,0.6273383,119400.0,119390.0,0.278948]
[1752434851775,0.95937524,119400.0,119390.0,0.278948]
[1752434852162,0.6273383,119400.0,119390.0,0.278948]
[1752434852468,0.96137524,119400.0,119390.0,0.278948]
[1752434852967,0.6293383,119400.0,119390.0,0.278948]
[1752434853266,0.96137524,119400.0,119390.0,0.278948]
[1752434853670,0.6293383,119400.0,119390.0,0.278948]
[1752434853968,0.96137524,119400.0,119390.0,0.278948]
[1752434854270,0.96157524,119400.0,119390.0,0.279148]
[1752434854964,1.12908724,119400.0,119390.0,0.199518]
[1752434859069,1.12908724,119400.0,119390.0,0.19943028]
[1752434861066,0.0418665,119390.0,119360.0,0.02456553]
[1752434861272,0.86032744,119370.0,119360.0,0.10419553]
[1752434861477,0.5282905,119370.0,119360.0,0.10419553]
[1752434862474,0.5282905,119370.0,119360.0,0.10619553]
[1752434863873,0.1674905,119370.0,119360.0,0.10719553]
[1752434864068,0.5282905,119370.0,119360.0,0.10719553]
[1752434864274,0.5282905,119370.0,119360.0,0.30651353]
[1752434864478,0.5282905,119370.0,119360.0,0.30551353]
[1752434864775,0.5282905,119370.0,119360.0,0.30851353]
[1752434867672,0.1674905,119370.0,119360.0,0.80805507]
[1752434867978,0.7493705,119370.0,119360.0,0.80805507]
[1752434868275,0.7493705,119370.0,119360.0,0.64055047]
[1752434869474,0.7493705,119370.0,119360.0,0.80805507]
[1752434869977,0.1674905,119370.0,119360.0,0.64055047]
[1752434871178,0.5282905,119370.0,119360.0,0.30851353]
[1752434871878,0.86032744,119370.0,119360.0,0.30851353]
[1752434873778,0.5282905,119370.0,119360.0,0.30851353]
[1752434881687,1.1092105,119370.0,119360.0,0.64055047]
[1752434881897,1.1094105,119370.0,119360.0,0.30871353]
[1752434883097,1.1094105,119370.0,119360.0,0.59180573]
[1752434884195,1.1094105,119370.0,119360.0,0.30871353]
[1752434884992,1.3925027,119370.0,119360.0,0.30871353]
[1752434887998,1.1094105,119370.0,119360.0,0.30871353]
[1752434888299,1.3925027,119370.0,119360.0,0.30871353]
[1752434889400,1.1094105,119370.0,119360.0,0.30871353]
[1752434889899,1.3925027,119370.0,119360.0,0.30871353]
[1752434890498,0.5284905,119370.0,119360.0,0.59180573]
[1752434890700,1.1087305,119370.0,119360.0,0.59180573]
[1752434891604,1.1088905,119370.0,119360.0,0.59180573]
[1752434891896,0.5284905,119370.0,119360.0,0.59180573]
[1752434892100,0.0002,119370.0,119360.0,2.56452243]
[1752434892995,0.22763302,119380.0,119370.0,0.1993805]
[1752434893195,0.22763302,119380.0,119370.0,0.93338528]
[1752434893397,0.06026125,119390.0,119380.0,0.2722665]
[1752434893599,0.06026125,119390.0,119380.0,0.9161587]
[1752434893796,0.22772375,119390.0,119380.0,2.0775187]
[1752434894491,0.28197375,119390.0,119380.0,1.9100422]
[1752434894695,0.2687425,119390.0,119380.0,1.5492422]
[1752434895200,0.2687425,119390.0,119380.0,1.26615]
[1752434895396,0.2687425,119390.0,119380.0,1.465468]
[1752434895598,0.6295425,119390.0,119380.0,1.466468]
[1752434897603,0.6295425,119390.0,119380.0,1.467468]
[1752434897799,0.6295425,119390.0,119380.0,0.281148]
[1752434898001,0.96115683,119390.0,119380.0,0.233208]
[1752434898304,0.96115683,119390.0,119380.0,0.201318]
[1752434898504,0.6295425,119390.0,119380.0,0.201318]
[1752434898707,1.03635248,119390.0,119380.0,0.201318]
[1752434899197,0.70473815,119390.0,119380.0,0.2180551]
[1752434899394,1.03635248,119390.0,119380.0,0.2200551]
[1752434900102,1.06643074,119390.0,119380.0,0.2200551]
[1752434900496,1.14173676,119390.0,119380.0,0.2200551]
[1752434900693,1.14173676,119390.0,119380.0,0.2519451]
[1752434900694,1.03646285,119390.0,119380.0,0.2519451]
[1752434901407,0.96115683,119390.0,119380.0,0.2519451]
[1752434903509,1.02138099,119390.0,119380.0,0.2519451]
[1752434903915,1.02138099,119390.0,119380.0,0.2200551]
[1752434905506,0.96115683,119390.0,119380.0,0.2200551]
[1752434905807,1.02138099,119390.0,119380.0,0.2200551]
[1752434906307,0.96115683,119390.0,119380.0,0.2200551]
[1752434906907,1.02138099,119390.0,119380.0,0.2200551]
[1752434909313,0.96115683,119390.0,119380.0,0.2200551]
[1752434909911,1.0213541,119390.0,119380.0,0.2200551]
[1752434910209,1.0215541,119390.0,119380.0,0.2202551]
[1752434911510,1.0215541,119390.0,119380.0,0.3009051]
[1752434911811,1.6013541,119390.0,119380.0,0.3009051]
[1752434912211,1.0215541,119390.0,119380.0,0.3009051]
[1752434912411,1.6013541,119390.0,119380.0,0.3009051]
[1752434912715,1.26973977,119390.0,119380.0,0.3009051]
[1752434912911,1.6013541,119390.0,119380.0,0.3009051]
[1752434913211,1.0215541,119390.0,119380.0,0.3009051]
[1752434913412,1.6012741,119390.0,119380.0,0.3009051]
[1752434914919,1.55271979,119390.0,119380.0,0.3009051]
[1752434916423,1.26965977,119390.0,119380.0,0.3009051]
[1752434916629,0.97299979,119390.0,119380.0,0.3009051]
[1752434916824,1.55239979,119390.0,119380.0,0.3009051]
[1752434917125,1.26933977,119390.0,119380.0,0.3009051]
[1752434917427,1.55239979,119390.0,119380.0,0.3009051]
[1752434919522,1.26933977,119390.0,119380.0,0.3009051]
[1752434919724,1.55239979,119390.0,119380.0,0.3009051]
[1752434919923,0.97299979,119390.0,119380.0,0.3009051]
[1752434920118,1.55199979,119390.0,119380.0,0.3009051]
[1752434920621,1.55199979,119390.0,119380.0,0.2202551]
[1752434922329,1.55199979,119390.0,119380.0,0.2222551]
[1752434923032,1.55199979,119390.0,119380.0,0.2202551]
[1752434924026,1.49180252,119390.0,119380.0,0.2202551]
[1752434924323,1.2087425,119390.0,119380.0,0.202518]
[1752434924526,1.49180252,119390.0,119380.0,0.202518]
[1752434925725,1.55208373,119390.0,119380.0,0.202518]
[1752434926027,1.55249373,119390.0,119380.0,0.283168]
[1752434926622,1.55241373,119390.0,119380.0,0.283168]
[1752434927427,1.26935371,119390.0,119380.0,0.283168]
[1752434927928,1.55241373,119390.0,119380.0,0.283168]
[1752434928227,1.26935371,119390.0,119380.0,0.283168]
[1752434929025,1.2090725,119390.0,119380.0,0.283168]
[1752434929626,1.49213252,119390.0,119380.0,0.322668]
[1752434930129,1.55241373,119390.0,119380.0,0.322668]
[1752434931130,1.26935371,119390.0,119380.0,0.322668]
[1752434931429,1.55241373,119390.0,119380.0,0.322668]
[1752434935232,1.49213252,119390.0,119380.0,0.322668]
[1752434935533,1.92823854,119390.0,119380.0,0.322668]
[1752434936032,1.85293252,119390.0,119380.0,0.322668]
[1752434937732,1.92823854,119390.0,119380.0,0.322668]
[1752434939129,1.92823854,119390.0,119380.0,0.345568]
[1752434939732,1.98856567,119390.0,119380.0,0.345568]
[1752434939933,1.91325965,119390.0,119380.0,0.322668]
[1752434942734,1.63019963,119390.0,119380.0,0.322668]
[1752434943035,1.91325965,119390.0,119380.0,0.322668]
[1752434943740,1.91325965,119390.0,119380.0,0.242018]
[1752434943926,1.85293252,119390.0,119380.0,0.242018]
[1752434944132,1.92823854,119390.0,119380.0,0.242018]
[1752434950139,1.95820643,119390.0,119380.0,0.242018]
[1752434950640,1.85293252,119390.0,119380.0,0.242018]
[1752434951637,1.95820643,119390.0,119380.0,0.192018]
[1752434951939,1.92829322,119390.0,119380.0,0.116818]
[1752434952538,1.92829322,119390.0,119380.0,0.0649517]
[1752434952743,0.1907595,119370.0,119360.0,0.04784553]
[1752434952939,1.41125952,119370.0,119360.0,0.04784553]
[1752434953737,1.47154075,119370.0,119360.0,0.05184553]
[1752434954042,1.83234075,119370.0,119360.0,0.00567553]
[1752434954343,1.83234075,119370.0,119360.0,0.00867553]
[1752434955532,1.77205952,119370.0,119360.0,0.00867553]
[1752434955738,1.84741975,119370.0,119360.0,0.00867553]
[1752434957439,1.84741975,119370.0,119360.0,0.20799353]
[1752434958735,1.77205952,119370.0,119360.0,0.20799353]
[1752434958939,1.83230547,119370.0,119360.0,0.20799353]
[1752434959547,1.77205952,119370.0,119360.0,0.18504253]
[1752434959747,1.84741975,119370.0,119360.0,0.18504253]
[1752434959950,1.90766298,119370.0,119360.0,0.12874183]
[1752434960243,0.1675175,119350.0,119340.0,0.06907]
[1752434960551,1.74869752,119350.0,119340.0,0.10216]
[1752434961446,1.74869752,119350.0,119340.0,0.10616]
[1752434962448,1.75733986,119350.0,119340.0,0.10616]
[1752434962650,1.75733986,119350.0,119340.0,0.10916]
[1752434963247,1.75733986,119350.0,119340.0,0.308478]
[1752434964545,0.8891175,119350.0,119340.0,0.308478]
[1752434964849,1.1045975,119350.0,119340.0,0.308478]
[1752434965147,0.7437575,119350.0,119340.0,0.59153802]
[1752434965645,0.1675175,119350.0,119340.0,0.59153802]
[1752434965849,0.7437975,119350.0,119340.0,0.59153802]
[1752434966047,0.7437975,119350.0,119340.0,0.95233802]
[1752434966249,1.1045975,119350.0,119340.0,0.59153802]
[1752434966448,0.7437975,119350.0,119340.0,0.59153802]
[1752434967750,1.02685752,119350.0,119340.0,0.308478]
[1752434968450,1.38765752,119350.0,119340.0,0.308478]
[1752434972852,1.1045975,119350.0,119340.0,0.308478]
[1752434973154,1.38785752,119350.0,119340.0,0.308678]
[1752434973453,1.1047975,119350.0,119340.0,0.308678]
[1752434979553,0.7439975,119350.0,119340.0,0.308678]
[1752434979758,1.38785752,119350.0,119340.0,0.308678]
[1752434980462,1.02705752,119350.0,119340.0,0.308678]
[1752434981959,1.38785752,119350.0,119340.0,0.308678]
[1752434982160,1.1047975,119350.0,119340.0,0.308678]
[1752434982362,1.38785752,119350.0,119340.0,0.308678]
[1752434982863,1.02705752,119350.0,119340.0,0.308678]
[1752434983055,1.38785752,119350.0,119340.0,0.308678]
[1752434983253,1.1047975,119350.0,119340.0,0.308678]
[1752434983464,1.38785752,119350.0,119340.0,0.308678]
[1752434988066,1.1047975,119350.0,119340.0,0.308678]
[1752434988264,1.38785752,119350.0,119340.0,0.308678]
[1752434989562,1.02705752,119350.0,119340.0,0.308678]
[1752434990363,1.38785752,119350.0,119340.0,0.308678]
[1752434991167,1.02705752,119350.0,119340.0,0.308678]
[1752434991669,1.38785752,119350.0,119340.0,0.308678]
[1752434992565,1.02705752,119350.0,119340.0,0.308678]
[1752434992868,1.38785752,119350.0,119340.0,0.308678]
[1752434994368,1.02705752,119350.0,119340.0,0.308678]
[1752434994570,1.38785752,119350.0,119340.0,0.308678]
[1752434996875,1.44810075,119350.0,119340.0,0.308678]
[1752434997862,1.38785752,119350.0,119340.0,0.308678]
[1752434998971,1.1047975,119350.0,119340.0,0.308678]
[1752434999171,1.38785752,119350.0,119340.0,0.308678]
[1752434999972,1.44810075,119350.0,119340.0,0.308678]
[1752435001269,1.16504073,119350.0,119340.0,0.308678]
[1752435001666,1.16504073,119350.0,119340.0,0.59173802]
[1752435003169,1.16404073,119350.0,119340.0,0.59173802]
[1752435003472,0.58876073,119350.0,119340.0,0.59173802]
[1752435003664,0.80312073,119350.0,119340.0,0.59173802]
[1752435003867,0.80340073,119350.0,119340.0,0.59173802]
[1752435005474,0.80340073,119350.0,119340.0,0.308678]
[1752435005681,0.80336073,119350.0,119340.0,0.59173802]
[1752435006777,1.16416073,119350.0,119340.0,0.59173802]
[1752435008878,0.80336073,119350.0,119340.0,0.59173802]
[1752435009874,0.7431175,119350.0,119340.0,0.59173802]
[1752435010076,0.7431175,119350.0,119340.0,0.308678]
[1752435010375,0.7431175,119350.0,119340.0,0.59173802]
[1752435010777,0.80336073,119350.0,119340.0,0.59173802]
[1752435011179,1.16416073,119350.0,119340.0,0.59173802]
[1752435012583,1.16416073,119350.0,119340.0,0.308678]
[1752435012783,1.16416073,119350.0,119340.0,0.59173802]
[1752435012974,1.316314,119350.0,119340.0,0.5210745]
[1752435014586,1.1039175,119350.0,119340.0,0.5210745]
[1752435014779,1.316314,119350.0,119340.0,0.5210745]
[1752435016088,1.316314,119350.0,119340.0,0.308678]
[1752435016384,1.316314,119350.0,119340.0,0.5210745]
[1752435016979,1.316314,119350.0,119340.0,0.308678]
[1752435017179,1.316314,119350.0,119340.0,0.5210745]
[1752435018788,0.740914,119350.0,119340.0,0.733471]
[1752435018988,1.315754,119350.0,119340.0,0.733471]
[1752435020189,1.315754,119350.0,119340.0,0.308678]
[1752435020382,1.315754,119350.0,119340.0,0.733471]
[1752435020887,1.1033575,119350.0,119340.0,0.733471]
[1752435021088,1.315754,119350.0,119340.0,0.733471]
[1752435021393,0.954954,119350.0,119340.0,0.733471]
[1752435021588,1.315754,119350.0,119340.0,0.733471]
[1752435021785,1.1033575,119350.0,119340.0,0.733471]
[1752435022089,1.315754,119350.0,119340.0,0.733471]
[1752435022689,1.37599723,119350.0,119340.0,0.308678]
[1752435022888,1.37599723,119350.0,119340.0,0.733471]
[1752435023089,1.37599723,119350.0,119340.0,0.308678]
[1752435023290,1.37599723,119350.0,119340.0,0.733471]
[1752435024996,1.16360073,119350.0,119340.0,0.733471]
[1752435025292,0.07536023,119360.0,119350.0,0.07258]
[1752435025493,0.10727391,119370.0,119360.0,0.2723333]
[1752435025692,0.002,119370.0,119360.0,2.51520926]
[1752435025897,0.002,119370.0,119360.0,2.93276125]
[1752435026395,0.002,119370.0,119360.0,2.83743479]
[1752435026995,0.002,119370.0,119360.0,2.76616287]
[1752435027195,0.002,119370.0,119360.0,2.76716287]
[1752435027993,0.1694893,119370.0,119360.0,2.76716287]
[1752435029198,0.1694893,119370.0,119360.0,2.51716287]
[1752435030204,0.1694893,119370.0,119360.0,2.71648087]
[1752435030591,0.1694893,119370.0,119360.0,3.01078087]
[1752435030793,0.1694893,119370.0,119360.0,3.07896855]
[1752435033102,0.002,119370.0,119360.0,3.07896855]
[1752435034902,0.1694893,119370.0,119360.0,2.79600976]
[1752435035202,0.1694893,119370.0,119360.0,3.07896855]
[1752435036609,0.1694893,119370.0,119360.0,2.78466855]
[1752435037109,0.002,119370.0,119360.0,2.78466855]
[1752435038001,0.0837327,119390.0,119360.0,2.61716525]
[1752435038203,0.03224,119390.0,119380.0,0.6331053]
[1752435038399,0.1674872,119400.0,119390.0,0.2722912]
[1752435038602,4e-05,119400.0,119390.0,0.55524999]
[1752435038904,0.48816786,119450.0,119400.0,0.03225]
[1752435039104,0.10802286,119450.0,119440.0,0.5281911]
[1752435039406,0.34163154,119450.0,119440.0,1.81121364]
[1752435039702,0.34163154,119450.0,119440.0,1.97860474]
[1752435039900,0.34163154,119450.0,119440.0,2.04702204]
[1752435040099,0.34163154,119450.0,119440.0,1.87763094]
[1752435040302,0.34163154,119450.0,119440.0,2.07894894]
[1752435040502,0.34163154,119450.0,119440.0,1.71614894]
[1752435040706,0.34163154,119450.0,119440.0,2.24434004]
[1752435041006,0.34463154,119450.0,119440.0,2.24434004]
[1752435041399,0.34463154,119450.0,119440.0,2.07694894]
[1752435041601,0.98739033,119450.0,119440.0,0.199318]
[1752435042001,1.06238592,119450.0,119440.0,0.199318]
[1752435042201,1.63766592,119450.0,119440.0,0.199518]
[1752435042417,1.63766592,119450.0,119440.0,0.124518]